bitfinex/quotes_BTCUSD_20250101
["timestamp","ask_amount","ask_price","bid_price","bid_amount"]
[1735702987250,0.2210788,94006.0,94005.0,0.17340061]
[1735702987871,0.3710788,94006.0,94005.0,0.17240061]
[1735702988452,0.3710788,94006.0,94005.0,0.17640061]
[1735702988678,0.0083268,94006.0,94005.0,0.17640061]
[1735702988896,0.0083268,94006.0,94005.0,0.17540061]
[1735702989100,0.0083268,94006.0,94005.0,0.17740061]
[1735702990187,0.0083268,94006.0,94005.0,0.17440061]
[1735702990397,0.0083268,94006.0,94005.0,0.18140061]
[1735703003590,0.0083268,94006.0,94005.0,0.20248593]
[1735703004479,0.0083268,94006.0,94005.0,0.20048593]
[1735703004688,0.0083268,94006.0,94005.0,0.20448593]
[1735703005376,0.0083268,94006.0,94005.0,0.19748593]
[1735703005755,0.00836701,94006.0,94005.0,0.20648593]
[1735703007630,0.00831899,94006.0,94005.0,0.20648593]
[1735703007828,8.53e-05,94006.0,94005.0,0.20648593]
[1735703008276,0.0080343,94006.0,94005.0,0.20648593]
[1735703008470,0.0080343,94006.0,94005.0,0.19348593]
[1735703008816,0.0080343,94006.0,94005.0,0.20248593]
[1735703009243,0.0081284,94006.0,94005.0,0.20248593]
[1735703010019,0.0081284,94006.0,94005.0,0.20748593]
[1735703013332,8.53e-05,94006.0,94005.0,0.20748593]
[1735703014403,8.53e-05,94006.0,94005.0,0.18640061]
[1735703014861,0.00813275,94006.0,94005.0,0.18640061]
[1735703015100,8.53e-05,94006.0,94005.0,0.18640061]
[1735703015555,0.00813039,94006.0,94005.0,0.18640061]
[1735703015687,8.53e-05,94006.0,94005.0,0.18640061]
[1735703015913,0.00813039,94006.0,94005.0,0.18640061]
[1735703031980,0.00813039,94006.0,94005.0,0.48012149]
[1735703032175,0.00813039,94006.0,94005.0,0.69287549]
[1735703032406,8.53e-05,94006.0,94005.0,0.73883671]
[1735703032566,8.53e-05,94006.0,94005.0,0.74349707]
[1735703033158,8.53e-05,94006.0,94005.0,0.73849707]
[1735703033362,8.53e-05,94006.0,94005.0,0.74449707]
[1735703033560,8.53e-05,94006.0,94005.0,1.09876986]
[1735703033965,8.53e-05,94006.0,94005.0,1.09276986]
[1735703034972,8.53e-05,94006.0,94005.0,1.08376986]
[1735703035169,8.53e-05,94006.0,94005.0,1.09276986]
[1735703035553,8.53e-05,94006.0,94005.0,1.10176986]
[1735703036369,8.53e-05,94006.0,94005.0,1.0971095]
[1735703036911,8.53e-05,94006.0,94005.0,1.10175649]
[1735703037490,8.53e-05,94006.0,94005.0,1.07347255]
[1735703038007,8.53e-05,94006.0,94005.0,1.02885167]
[1735703038224,8.53e-05,94011.0,94010.0,0.2]
[1735703038432,8.53e-05,94011.0,94010.0,0.59412932]
[1735703039195,8.53e-05,94011.0,94010.0,0.96607939]
[1735703039531,8.53e-05,94011.0,94010.0,1.08370845]
[1735703039706,8.53e-05,94011.0,94010.0,1.09270845]
[1735703039877,8.53e-05,94011.0,94010.0,1.08806571]
[1735703040329,8.53e-05,94011.0,94010.0,1.07906571]
[1735703040534,8.53e-05,94011.0,94010.0,1.12436571]
[1735703040953,8.53e-05,94011.0,94010.0,1.11536571]
[1735703041501,8.53e-05,94011.0,94010.0,1.12436571]
[1735703041808,8.53e-05,94011.0,94010.0,1.13336571]
[1735703043469,8.53e-05,94011.0,94010.0,1.3247155]
[1735703044351,8.53e-05,94011.0,94010.0,1.13336571]
[1735703047621,8.53e-05,94011.0,94010.0,1.02937939]
[1735703048250,8.53e-05,94011.0,94010.0,1.01137939]
[1735703048564,8.53e-05,94011.0,94010.0,1.01170211]
[1735703048714,8.53e-05,94011.0,94010.0,0.64842932]
[1735703048921,8.53e-05,94011.0,94010.0,0.63942932]
[1735703049131,8.53e-05,94011.0,94010.0,0.64842932]
[1735703049617,8.53e-05,94011.0,94010.0,0.63942932]
[1735703049819,8.53e-05,94011.0,94010.0,0.75262062]
[1735703050020,8.53e-05,94011.0,94010.0,0.76162062]
[1735703050333,8.53e-05,94011.0,94010.0,0.86560694]
[1735703051248,8.53e-05,94011.0,94010.0,0.85660694]
[1735703051656,8.53e-05,94011.0,94010.0,0.86560694]
[1735703052281,8.53e-05,94011.0,94010.0,0.87460694]
[1735703052665,8.53e-05,94011.0,94010.0,0.86560694]
[1735703052882,8.53e-05,94011.0,94010.0,0.87460694]
[1735703053875,8.53e-05,94011.0,94010.0,0.77900345]
[1735703057125,8.53e-05,94011.0,94010.0,0.78364538]
[1735703059394,8.53e-05,94011.0,94010.0,0.81183704]
[1735703060893,8.53e-05,94011.0,94010.0,0.66255072]
[1735703061623,0.08583101,94030.0,94019.0,0.1]
[1735703061772,0.08583101,94030.0,94029.0,0.31668632]
[1735703061950,5.014e-05,94030.0,94029.0,0.10398632]
[1735703062935,5.014e-05,94030.0,94029.0,0.11298632]
[1735703063740,5.014e-05,94030.0,94029.0,0.009]
[1735703063943,0.212698,94030.0,94029.0,0.009]
[1735703064161,1.057617,94030.0,94029.0,0.009]
[1735703064355,1.142853,94030.0,94029.0,0.009]
[1735703064769,1.231853,94030.0,94029.0,0.015]
[1735703065353,0.212743,94010.0,94004.0,0.0001706]
[1735703065604,0.257843,94010.0,94009.0,0.10415692]
[1735703067075,0.257843,94010.0,94009.0,0.10815692]
[1735703067279,0.257843,94010.0,94009.0,0.11715692]
[1735703071875,0.26585619,94010.0,94009.0,0.11715692]
[1735703080671,0.05311319,94010.0,94009.0,0.11715692]
[1735703084228,0.00801319,94010.0,94009.0,0.11715692]
[1735703084678,0.00798573,94010.0,94009.0,0.11715692]
[1735703084833,0.212739,94012.0,94009.0,0.11715692]
[1735703085011,0.212739,94012.0,94010.0,0.10398632]
[1735703085212,0.0079882,94011.0,94010.0,0.10398632]
[1735703086579,0.0079882,94011.0,94010.0,0.11298632]
[1735703087405,0.0079882,94011.0,94010.0,0.10398632]
[1735703087603,0.0079882,94011.0,94010.0,0.11298632]
[1735703087878,0.0079882,94011.0,94010.0,0.11698632]
[1735703088383,0.0079882,94011.0,94010.0,0.11298632]
[1735703088714,0.0079882,94011.0,94010.0,0.11598632]
[1735703092077,0.0079882,94011.0,94010.0,0.012]
[1735703099134,0.0079882,94011.0,94010.0,0.0121706]
[1735703102489,0.22260742,94011.0,94010.0,0.0121706]
[1735703103701,0.57438042,94011.0,94010.0,0.0121706]
[1735703104230,0.61828042,94011.0,94010.0,0.0121706]
[1735703104468,0.61828042,94011.0,94010.0,0.0031706]
[1735703104679,0.61828042,94011.0,94010.0,0.0001706]
[1735703105307,0.62034871,94011.0,94010.0,0.0001706]
[1735703105518,0.62134871,94011.0,94010.0,0.0001706]
[1735703107511,0.20605649,94011.0,94010.0,0.0001706]
[1735703107720,0.16105649,94011.0,94010.0,0.0001706]
[1735703108331,0.16005649,94011.0,94010.0,0.0001706]
[1735703108767,0.16105649,94011.0,94010.0,0.0001706]
[1735703108987,0.01105649,94011.0,94010.0,0.0001706]
[1735703110056,0.22498254,94011.0,94010.0,0.0001706]
[1735703110259,0.16005649,94011.0,94010.0,0.0001706]
[1735703110592,0.16005649,94011.0,94010.0,0.0041706]
[1735703111227,0.16005649,94011.0,94010.0,0.0051706]
[1735703112669,0.16005649,94011.0,94010.0,0.0011706]
[1735703113184,0.16005649,94011.0,94010.0,0.0001706]
[1735703113367,0.24088254,94011.0,94010.0,0.0001706]
[1735703114054,0.16105649,94011.0,94010.0,0.10415692]
[1735703114257,0.16105649,94011.0,94010.0,0.18685692]
[1735703114624,0.16005649,94011.0,94010.0,0.18685692]
[1735703114820,0.16105649,94011.0,94010.0,0.18685692]
[1735703116117,0.16005649,94011.0,94010.0,0.18685692]
[1735703116235,0.16005649,94011.0,94010.0,0.19385692]
[1735703116593,0.01105649,94011.0,94010.0,0.25579379]
[1735703117009,0.15,94018.0,94011.0,0.0827]
[1735703117155,0.15,94016.0,94012.0,0.10398632]
[1735703117377,0.15,94014.0,94012.0,0.10398632]
[1735703117794,0.00010242,94013.0,94012.0,0.10398632]
[1735703119678,0.00010242,94013.0,94012.0,0.10698632]
[1735703120100,0.00010242,94013.0,94012.0,0.11298632]
[1735703120518,0.00010242,94013.0,94012.0,0.11598632]
[1735703131737,0.00871917,94013.0,94012.0,0.11598632]
[1735703140624,0.00522596,94013.0,94012.0,0.11598632]
[1735703141031,0.08456726,94013.0,94012.0,0.11277215]
[1735703141962,0.08456726,94013.0,94012.0,0.10492187]
[1735703142190,0.08456726,94013.0,94012.0,0.10084768]
[1735703144873,0.08456726,94013.0,94012.0,0.10101828]
[1735703145297,0.00522596,94013.0,94012.0,0.10101828]
[1735703156898,0.00531126,94013.0,94012.0,0.10101828]
[1735703165158,0.21863024,94013.0,94012.0,0.10101828]
[1735703169080,0.21869511,94013.0,94012.0,0.10101828]
[1735703169466,0.21878041,94013.0,94012.0,0.10101828]
[1735703169672,0.28320325,94013.0,94012.0,0.10101828]
[1735703169875,0.21878041,94013.0,94012.0,0.10101828]
[1735703173856,0.36878041,94013.0,94012.0,0.10101828]
[1735703174916,0.15604441,94013.0,94012.0,0.10101828]
[1735703191025,0.15604441,94013.0,94012.0,0.09201828]
[1735703191167,0.15604441,94013.0,94012.0,0.08901828]
[1735703191408,0.15604441,94013.0,94012.0,0.09701828]
[1735703191615,0.15604441,94013.0,94012.0,0.10001828]
[1735703192987,0.15604441,94013.0,94012.0,0.09701828]
[1735703193232,0.15604441,94013.0,94012.0,0.08901828]
[1735703193408,0.15604441,94013.0,94012.0,0.09201828]
[1735703193602,0.15604441,94013.0,94012.0,0.10101828]
[1735703209929,0.15604441,94013.0,94012.0,0.09801828]
[1735703210065,0.15604441,94013.0,94012.0,0.08901828]
[1735703210291,0.15604441,94013.0,94012.0,0.09201828]
[1735703210527,0.15604441,94013.0,94012.0,0.10001828]
[1735703210728,0.15604441,94013.0,94012.0,0.09201828]
[1735703211134,0.15604441,94013.0,94012.0,0.10101828]
[1735703211632,0.15604441,94013.0,94012.0,0.09801828]
[1735703212122,0.15604441,94013.0,94012.0,0.10101828]
[1735703227322,0.0530087,94014.0,94012.0,0.10101828]
[1735703227522,0.00524008,94013.0,94012.0,0.10101828]
[1735703227679,0.00522159,94013.0,94012.0,0.10101828]
[1735703227880,0.00522159,94013.0,94012.0,0.09201828]
[1735703228266,0.00522159,94013.0,94012.0,0.10101828]
[1735703228691,0.00522159,94013.0,94012.0,0.09801828]
[1735703229125,0.00522159,94013.0,94012.0,0.10101828]
[1735703229545,0.00522159,94013.0,94012.0,0.08901828]
[1735703229825,0.00522159,94013.0,94012.0,0.09301828]
[1735703230201,0.00522159,94013.0,94012.0,0.10201828]
[1735703230425,0.00522159,94013.0,94012.0,0.09301828]
[1735703230733,0.00522159,94013.0,94012.0,0.10101828]
[1735703231314,0.00522159,94013.0,94012.0,0.11496335]
[1735703231514,0.00522159,94013.0,94012.0,0.09701828]
[1735703231661,0.00522159,94013.0,94012.0,0.10001828]
[1735703232061,0.00522159,94013.0,94012.0,0.08901828]
[1735703232263,0.21795759,94013.0,94012.0,0.08901828]
[1735703232470,0.21795759,94013.0,94012.0,0.09301828]
[1735703233526,0.21795759,94013.0,94012.0,0.10201828]
[1735703234945,0.21971427,94013.0,94012.0,0.10201828]
[1735703235924,0.36971427,94013.0,94012.0,0.10201828]
[1735703236543,0.36971427,94013.0,94012.0,0.1976463]
[1735703236544,0.00697827,94013.0,94012.0,0.1976463]
[1735703236746,0.00693775,94013.0,94012.0,0.3430463]
[1735703236951,8.53e-05,94015.0,94014.0,0.1771]
[1735703237197,8.53e-05,94015.0,94014.0,0.37925228]
[1735703237931,8.53e-05,94015.0,94014.0,0.29692801]
[1735703238140,8.53e-05,94015.0,94014.0,0.20776205]
[1735703238725,8.53e-05,94015.0,94014.0,0.21376205]
[1735703238898,8.53e-05,94015.0,94014.0,0.55047418]
[1735703239243,8.53e-05,94015.0,94014.0,0.54447418]
[1735703239677,8.53e-05,94015.0,94014.0,0.19008632]
[1735703239868,8.53e-05,94015.0,94014.0,0.18108632]
[1735703240076,8.53e-05,94015.0,94014.0,0.20773643]
[1735703240578,8.53e-05,94015.0,94014.0,0.21373643]
[1735703241939,8.53e-05,94015.0,94014.0,0.19608632]
[1735703242403,8.53e-05,94015.0,94014.0,0.29202266]
[1735703243854,8.53e-05,94015.0,94014.0,0.19608632]
[1735703245953,8.53e-05,94015.0,94014.0,0.21372482]
[1735703246404,8.53e-05,94015.0,94014.0,0.19608632]
[1735703246829,8.53e-05,94015.0,94014.0,0.29202266]
[1735703247249,8.53e-05,94015.0,94014.0,0.19608632]
[1735703249453,0.0929853,94015.0,94014.0,0.015]
[1735703249660,0.28855623,94015.0,94014.0,0.015]
[1735703249833,1.97222123,94015.0,94014.0,0.015]
[1735703250235,1.97791496,94015.0,94014.0,0.009]
[1735703250445,0.385734,94014.0,94012.0,0.0001706]
[1735703250652,0.26995302,94013.0,94012.0,0.0001706]
[1735703250860,2.29961702,94013.0,94012.0,0.0001706]
[1735703251057,2.30529399,94013.0,94012.0,0.0001706]
[1735703254211,2.30629399,94013.0,94012.0,0.0001706]
[1735703255227,2.30629399,94013.0,94011.0,7.4e-07]
[1735703255228,0.385738,94012.0,94011.0,7.4e-07]
[1735703255400,3.62876525,94012.0,94011.0,7.4e-07]
[1735703255597,0.63384981,94012.0,94011.0,7.4e-07]
[1735703256712,0.63984981,94012.0,94011.0,0.00100074]
[1735703257152,0.64084981,94012.0,94011.0,0.00100074]
[1735703257378,3.30209081,94012.0,94011.0,0.00100074]
[1735703257562,3.26742281,94012.0,94011.0,0.00100074]
[1735703258656,3.24550181,94012.0,94011.0,0.00100074]
[1735703259840,0.64084981,94012.0,94011.0,0.00100074]
[1735703260047,3.39017181,94012.0,94011.0,0.00100074]
[1735703260579,3.35653281,94012.0,94011.0,0.00100074]
[1735703261575,3.32607481,94012.0,94011.0,0.00100074]
[1735703261781,3.34274718,94012.0,94011.0,0.00100074]
[1735703261987,3.32607481,94012.0,94011.0,0.00100074]
[1735703264015,3.32607481,94012.0,94011.0,0.001]
[1735703264016,3.42607481,94012.0,94011.0,0.001]
[1735703264221,0.212833,93970.0,93966.0,0.0001706]
[1735703264436,0.0488,93979.0,93957.0,0.07317694]
[1735703264437,0.212861,93958.0,93957.0,0.07317694]
[1735703264637,0.362861,93958.0,93957.0,0.07037901]
[1735703264839,0.362872,93953.0,93951.0,8.54e-05]
[1735703265273,0.36988129,93953.0,93951.0,8.54e-05]
[1735703265468,0.41545222,93953.0,93951.0,8.54e-05]
[1735703265670,0.41125022,93953.0,93952.0,0.00058712]
[1735703266735,0.41125022,93953.0,93952.0,0.00158712]
[1735703267412,0.41125022,93953.0,93952.0,0.00358712]
[1735703267812,0.41125022,93953.0,93952.0,0.00058712]
[1735703268051,0.43425022,93953.0,93952.0,0.00058712]
[1735703268694,1.56267922,93953.0,93952.0,0.00058712]
[1735703268942,0.173,93952.0,93951.0,5.2e-07]
[1735703269152,0.26995302,93952.0,93951.0,9.7e-07]
[1735703269357,0.38044256,93952.0,93951.0,9.7e-07]
[1735703270298,0.38944256,93952.0,93951.0,9.7e-07]
[1735703270717,0.41637402,93952.0,93951.0,9.7e-07]
[1735703271813,0.2729999,93944.0,93943.0,2e-08]
[1735703271950,0.63544915,93944.0,93943.0,2e-08]
[1735703272307,0.66890684,93944.0,93943.0,2e-08]
[1735703272875,0.67090684,93944.0,93943.0,2e-08]
[1735703273084,0.67190684,93944.0,93943.0,2e-08]
[1735703273298,0.69853193,93944.0,93943.0,2e-08]
[1735703274485,0.71521615,93944.0,93943.0,2e-08]
[1735703274613,0.6616596,93944.0,93943.0,2e-08]
[1735703276960,0.51608877,93944.0,93943.0,2e-08]
[1735703277385,0.49940455,93944.0,93943.0,2e-08]
[1735703282138,0.51608871,93944.0,93943.0,2e-08]
[1735703283694,0.51608871,93944.0,93943.0,0.08020002]
[1735703283870,0.51608871,93944.0,93943.0,2e-08]
[1735703284653,0.62007503,93944.0,93943.0,2e-08]
[1735703285295,0.61707503,93944.0,93943.0,2e-08]
[1735703285691,0.62007503,93944.0,93943.0,2e-08]
[1735703285941,0.61807503,93944.0,93943.0,2e-08]
[1735703286153,0.61907503,93944.0,93943.0,2e-08]
[1735703286466,0.62007503,93944.0,93943.0,2e-08]
[1735703287663,0.60339087,93944.0,93943.0,2e-08]
[1735703288049,0.362922,93931.0,93930.0,3.99019584]
[1735703288399,0.40145963,93931.0,93930.0,3.99019584]
[1735703289343,0.40145963,93931.0,93930.0,3.99719584]
[1735703289553,0.90145963,93931.0,93930.0,3.99719584]
[1735703289982,0.90795516,93931.0,93930.0,3.99719584]
[1735703290393,0.93095516,93931.0,93930.0,3.99719584]
[1735703291513,1.60778216,93931.0,93930.0,3.99719584]
[1735703291845,1.56924453,93931.0,93930.0,3.99719584]
[1735703292072,1.20595473,93931.0,93930.0,3.99719584]
[1735703292489,0.90910273,93931.0,93930.0,3.99719584]
[1735703292824,2.66198873,93931.0,93930.0,3.99719584]
[1735703293032,2.67705873,93931.0,93930.0,3.99719584]
[1735703293366,2.78104505,93931.0,93930.0,3.99719584]
[1735703296713,2.98503127,93931.0,93930.0,3.95461184]
[1735703297320,2.88503137,93931.0,93930.0,3.89073584]
[1735703297529,2.17125953,93931.0,93930.0,3.89073584]
[1735703297752,2.14992553,93931.0,93930.0,3.89073584]
[1735703298470,2.14992553,93931.0,93930.0,3.88873584]
[1735703298670,2.12119053,93931.0,93930.0,3.88373584]
[1735703298993,2.12119053,93931.0,93930.0,3.88773584]
[1735703299307,2.21032585,93931.0,93930.0,3.88790664]
[1735703299653,2.31431217,93931.0,93930.0,3.82103064]
[1735703299855,2.31431217,93931.0,93930.0,3.79973864]
[1735703300485,2.31431217,93931.0,93930.0,3.79873864]
[1735703300889,2.31431217,93931.0,93930.0,3.79973864]
[1735703301091,2.31431217,93931.0,93930.0,3.80173864]
[1735703301837,2.31431217,93931.0,93930.0,3.79873864]
[1735703302193,2.31431217,93931.0,93930.0,3.79973864]
[1735703302393,2.31431217,93931.0,93930.0,3.79873864]
[1735703302823,2.31531217,93931.0,93930.0,3.79873864]
[1735703303336,2.06501517,93931.0,93930.0,3.79873864]
[1735703303507,2.04727817,93931.0,93930.0,3.79873864]
[1735703303707,2.04827817,93931.0,93930.0,3.79873864]
[1735703304988,2.06496344,93931.0,93930.0,3.79873864]
[1735703307575,2.04827817,93931.0,93930.0,3.79873864]
[1735703310015,2.04827817,93931.0,93930.0,3.73486264]
[1735703310237,1.86668017,93931.0,93930.0,3.73486264]
[1735703310413,1.58608885,93931.0,93930.0,3.73486264]
[1735703311322,1.68608875,93931.0,93930.0,3.61539027]
[1735703311481,1.78608875,93931.0,93930.0,3.61539027]
[1735703311690,1.78608875,93931.0,93930.0,3.59409827]
[1735703311912,1.89016047,93931.0,93930.0,3.53022227]
[1735703312070,1.89016047,93931.0,93930.0,3.50893027]
[1735703312511,1.93976047,93931.0,93930.0,3.50893027]
[1735703312934,1.93976047,93931.0,93930.0,3.48763827]
[1735703313292,1.93976047,93931.0,93930.0,3.46634627]
[1735703313516,1.93976047,93931.0,93930.0,3.42376227]
[1735703313517,1.35207547,93931.0,93930.0,3.42376227]
[1735703313694,1.35207547,93931.0,93930.0,3.35988627]
[1735703313931,1.35207547,93931.0,93930.0,3.29601027]
[1735703314568,4.53302447,93931.0,93930.0,3.28543178]
[1735703314872,4.53302447,93931.0,93930.0,3.22155578]
[1735703315374,4.53302447,93931.0,93930.0,3.17897178]
[1735703315883,4.53302447,93931.0,93930.0,3.13638778]
[1735703316077,4.5497124,93931.0,93930.0,3.11509578]
[1735703316306,4.5497124,93931.0,93930.0,3.09380378]
[1735703316520,4.5497124,93931.0,93930.0,3.07251178]
[1735703316733,4.5497124,93931.0,93930.0,3.04341181]
[1735703317560,4.53302447,93931.0,93930.0,3.00082781]
[1735703317862,4.53302447,93931.0,93930.0,2.95824381]
[1735703318626,4.53302447,93931.0,93930.0,2.90556663]
[1735703318850,4.53302447,93931.0,93930.0,2.86298263]
[1735703319661,4.53302447,93931.0,93930.0,2.84169063]
[1735703319884,4.53302447,93931.0,93930.0,2.82039863]
[1735703320636,4.53302447,93931.0,93930.0,2.77781463]
[1735703321607,4.53302447,93931.0,93930.0,2.73523063]
[1735703322650,4.53302447,93931.0,93930.0,2.69264663]
[1735703323860,4.53302447,93931.0,93930.0,2.60747863]
[1735703323861,3.80259547,93931.0,93930.0,2.60747863]
[1735703324030,3.80259547,93931.0,93930.0,2.58618663]
[1735703324221,1.35207547,93931.0,93930.0,2.58618663]
[1735703324837,1.35207547,93931.0,93930.0,2.50101863]
[1735703325034,1.35207547,93931.0,93930.0,2.47972663]
[1735703325397,3.98329347,93931.0,93930.0,2.47972663]
[1735703325710,3.98329347,93931.0,93930.0,2.45843463]
[1735703325911,3.99998151,93931.0,93930.0,2.41585063]
[1735703326565,3.95872551,93931.0,93930.0,2.39455863]
[1735703326785,3.95872551,93931.0,93930.0,2.37326663]
[1735703327365,3.94203747,93931.0,93930.0,2.35197463]
[1735703327848,3.94203747,93931.0,93930.0,2.33068263]
[1735703328660,3.94203747,93931.0,93930.0,2.26680663]
[1735703328884,3.84569547,93931.0,93930.0,2.24551463]
[1735703329019,3.84569547,93931.0,93930.0,2.22422263]
[1735703330816,3.84569547,93931.0,93930.0,2.18163863]
[1735703331599,3.84569547,93931.0,93930.0,2.11319877]
[1735703331824,3.84569547,93931.0,93930.0,2.09190677]
[1735703332357,3.76554647,93931.0,93930.0,2.07061477]
[1735703332559,3.76554647,93931.0,93930.0,2.02803077]
[1735703332784,3.76554647,93931.0,93930.0,1.98544677]
[1735703332941,3.76554647,93931.0,93930.0,1.96415477]
[1735703333514,3.76454647,93931.0,93930.0,1.94286277]
[1735703333690,3.76454647,93931.0,93930.0,1.92157077]
[1735703333894,3.76454647,93931.0,93930.0,1.89305615]
[1735703334101,3.78123456,93931.0,93930.0,1.87176415]
[1735703334428,3.78123456,93931.0,93930.0,1.85047215]
[1735703334716,1.36776356,93931.0,93930.0,1.78659615]
[1735703334853,4.32609156,93931.0,93930.0,1.76530415]
[1735703335058,4.34425356,93931.0,93930.0,1.72272015]
[1735703335256,4.34325356,93931.0,93930.0,1.70142815]
[1735703335694,4.26707956,93931.0,93930.0,1.63755215]
[1735703335897,4.26707956,93931.0,93930.0,1.59496815]
[1735703336352,4.25039147,93931.0,93930.0,1.59496815]
[1735703336773,4.25039147,93931.0,93930.0,1.55238415]
[1735703337192,4.26039147,93931.0,93930.0,1.48950815]
[1735703337399,4.20060247,93931.0,93930.0,1.48950815]
[1735703337755,4.20060247,93931.0,93930.0,1.46821615]
[1735703338963,3.92912747,93931.0,93930.0,1.36175615]
[1735703339183,3.38994047,93931.0,93930.0,1.44115615]
[1735703339834,3.38994047,93931.0,93930.0,1.41986415]
[1735703340393,3.38994047,93931.0,93930.0,1.37728015]
[1735703342565,3.38994047,93931.0,93930.0,1.35598815]
[1735703342764,3.38994047,93931.0,93930.0,1.33469615]
[1735703343115,3.21862315,93931.0,93930.0,1.22823615]
[1735703343821,3.21862315,93931.0,93930.0,1.20694415]
[1735703344538,3.21862315,93931.0,93930.0,1.14306815]
[1735703345296,3.23531071,93931.0,93930.0,1.10048415]
[1735703345637,1.22317671,93931.0,93930.0,1.03660815]
[1735703345845,1.32716303,93931.0,93930.0,0.97273215]
[1735703346147,1.32716303,93931.0,93930.0,0.93014815]
[1735703346347,1.31047547,93931.0,93930.0,0.93014815]
[1735703346497,3.85612047,93931.0,93930.0,0.93014815]
[1735703346705,3.85612047,93931.0,93930.0,0.90885615]
[1735703346929,3.62639347,93931.0,93930.0,0.82368815]
[1735703347676,3.62639347,93931.0,93930.0,0.80239615]
[1735703348846,3.62639347,93931.0,93930.0,0.70838359]
[1735703349412,3.61639347,93931.0,93930.0,0.68609159]
[1735703349620,3.61939347,93931.0,93930.0,0.68609159]
[1735703349825,3.62739347,93931.0,93930.0,0.62321559]
[1735703350025,3.62739347,93931.0,93930.0,0.60092359]
[1735703350397,3.63539347,93931.0,93930.0,0.58063159]
[1735703350787,3.63539347,93931.0,93930.0,0.55933959]
[1735703351329,3.63239347,93931.0,93930.0,0.51675559]
[1735703351756,3.63539347,93931.0,93930.0,0.47417159]
[1735703352249,3.63539347,93931.0,93930.0,0.45287959]
[1735703352626,3.63539347,93931.0,93930.0,0.43158759]
[1735703353376,3.63539347,93931.0,93930.0,0.41029559]
[1735703353555,3.63539347,93931.0,93930.0,0.38900359]
[1735703354059,3.63539347,93931.0,93930.0,0.36771159]
[1735703354229,3.63539347,93931.0,93930.0,0.34641959]
[1735703355192,3.63539347,93931.0,93930.0,0.30383559]
[1735703355571,3.65208151,93931.0,93930.0,0.28254359]
[1735703355717,3.65208151,93931.0,93930.0,0.26125159]
[1735703355913,3.65208151,93931.0,93930.0,0.23995959]
[1735703356377,3.63539347,93931.0,93930.0,0.19737559]
[1735703356575,3.36057589,93931.0,93930.0,0.17608359]
[1735703356733,3.36057589,93931.0,93930.0,0.15479159]
[1735703357075,3.36057589,93931.0,93930.0,0.11220759]
[1735703357233,3.36057589,93931.0,93930.0,0.09091359]
[1735703357435,3.57349789,93931.0,93930.0,0.06961959]
[1735703357679,3.57349789,93931.0,93930.0,0.04832559]
[1735703358087,0.5359349,93925.0,93924.0,3e-07]
[1735703358291,0.63992122,93925.0,93924.0,3e-07]
[1735703358487,0.64684946,93925.0,93924.0,3e-07]
[1735703358901,0.79684946,93925.0,93924.0,3e-07]
[1735703359327,0.80284946,93925.0,93924.0,3e-07]
[1735703359642,0.90683578,93925.0,93924.0,3e-07]
[1735703362537,0.3729999,93920.0,93919.0,5e-08]
[1735703362760,0.4839072,93920.0,93919.0,5e-08]
[1735703363953,0.4869072,93920.0,93919.0,5e-08]
[1735703364148,0.54213414,93920.0,93919.0,5e-08]
[1735703364654,1.04213414,93920.0,93919.0,5e-08]
[1735703366405,1.18544483,93920.0,93919.0,5e-08]
[1735703366613,1.0469073,93920.0,93919.0,5e-08]
[1735703367869,1.0469073,93920.0,93919.0,0.07820005]
[1735703368077,1.1469072,93920.0,93919.0,0.07820005]
[1735703368580,2.4521152,93920.0,93919.0,0.07820005]
[1735703368717,2.2828822,93920.0,93919.0,0.07828545]
[1735703368996,1.74746898,93920.0,93919.0,0.07828545]
[1735703369182,0.66792098,93920.0,93919.0,0.07828545]
[1735703369590,0.82392098,93920.0,93919.0,0.07828545]
[1735703370206,0.84592098,93920.0,93919.0,0.07828545]
[1735703370412,0.83992098,93920.0,93919.0,0.07828545]
[1735703370618,0.84292098,93920.0,93919.0,0.07828545]
[1735703370868,0.9469073,93920.0,93919.0,0.07828545]
[1735703371088,0.9439073,93920.0,93919.0,0.07828545]
[1735703371663,0.83992098,93920.0,93919.0,0.07828545]
[1735703372363,0.84092098,93920.0,93919.0,0.07828545]
[1735703372823,0.83992098,93920.0,93919.0,0.07828545]
[1735703373027,0.83992098,93920.0,93919.0,0.12438545]
[1735703374629,0.81692098,93920.0,93919.0,0.12438545]
[1735703375515,0.73882098,93920.0,93919.0,0.22837177]
[1735703376083,0.76127896,93920.0,93919.0,0.22837177]
[1735703376401,0.74459366,93920.0,93919.0,0.22837177]
[1735703376623,0.81577266,93920.0,93919.0,0.22837177]
[1735703377298,0.81677266,93920.0,93919.0,0.22837177]
[1735703377878,0.81677266,93920.0,93919.0,0.23237177]
[1735703379736,0.31677268,93920.0,93919.0,0.23237177]
[1735703382310,0.31685798,93920.0,93919.0,0.23237177]
[1735703383452,0.16685798,93920.0,93919.0,0.23237177]
[1735703384680,0.16685798,93920.0,93919.0,0.22837177]
[1735703384900,0.16685798,93920.0,93919.0,0.23137177]
[1735703385088,0.1610853,93920.0,93919.0,0.23137177]
[1735703385408,0.1600853,93920.0,93919.0,0.23137177]
[1735703385593,0.16686389,93920.0,93919.0,0.23137177]
[1735703386179,0.16786389,93920.0,93919.0,0.22837177]
[1735703386664,0.16786389,93920.0,93919.0,0.23337177]
[1735703393165,0.1620853,93920.0,93919.0,0.23337177]
[1735703393361,0.1120853,93920.0,93919.0,0.23337177]
[1735703394191,0.1120853,93920.0,93919.0,0.22837177]
[1735703394499,0.1100853,93920.0,93919.0,0.22837177]
[1735703394666,0.1110853,93920.0,93919.0,0.23437177]
[1735703395865,0.1120853,93920.0,93919.0,0.24237177]
[1735703396274,0.0329853,93920.0,93919.0,0.53235809]
[1735703396503,0.0339853,93920.0,93919.0,0.54735809]
[1735703396905,0.0339853,93920.0,93919.0,0.56498677]
[1735703397116,0.0339853,93920.0,93919.0,0.55798677]
[1735703397304,0.0319853,93920.0,93919.0,0.55798677]
[1735703397666,0.0329853,93920.0,93919.0,0.56698677]
[1735703399821,0.0329853,93920.0,93919.0,0.46300045]
[1735703402018,0.0319853,93920.0,93919.0,0.45400045]
[1735703402259,0.0319853,93920.0,93919.0,0.44600045]
[1735703402406,0.0329853,93920.0,93919.0,0.45400045]
[1735703402575,0.0329853,93920.0,93919.0,0.46300045]
[1735703403021,0.0329853,93920.0,93919.0,0.36300045]
[1735703403663,0.0329853,93920.0,93919.0,0.46300045]
[1735703408825,0.0329853,93920.0,93919.0,0.56698677]
[1735703409088,0.0329853,93920.0,93919.0,0.71698677]
[1735703409353,0.0329853,93920.0,93919.0,0.77620344]
[1735703409615,8.54e-05,93931.0,93930.0,0.540024]
[1735703409878,8.54e-05,93931.0,93930.0,0.64401032]
[1735703410128,8.54e-05,93931.0,93930.0,0.74799664]
[1735703410376,8.54e-05,93931.0,93930.0,0.80184199]
[1735703411110,8.54e-05,93931.0,93930.0,0.94520064]
[1735703411347,8.54e-05,93931.0,93930.0,0.96820064]
[1735703411847,8.54e-05,93931.0,93930.0,1.17763161]
[1735703412079,8.54e-05,93931.0,93930.0,1.18663161]
[1735703412338,4e-07,93931.0,93930.0,1.1497742]
[1735703412534,4e-07,93931.0,93930.0,1.38084958]